bitfinex-derivatives/quotes_ETHF0:USTF0_20250824
["timestamp","ask_amount","ask_price","bid_price","bid_amount"]
[1756007766601,1.3346,4797.0,4796.9,4.92026]
[1756007767100,1.3346,4797.0,4796.9,5.11587836]
[1756007768394,1.3346,4797.0,4796.9,4.92026]
[1756007770902,1.3346,4797.0,4796.9,5.11587836]
[1756007771494,0.2189,4797.0,4796.9,5.11587836]
[1756007772094,0.4526,4797.0,4796.9,5.11587836]
[1756007772700,0.2189,4797.0,4796.9,5.11587836]
[1756007773005,0.796,4797.3,4797.2,0.96824]
[1756007773206,0.45,4797.3,4797.2,1.76374]
[1756007775407,0.6004,4797.3,4797.2,1.76374]
[1756007775594,0.9464,4797.3,4797.2,1.76374]
[1756007775794,0.2163,4797.3,4797.2,1.76374]
[1756007775998,0.2163,4797.8,4797.7,1.76309]
[1756007778499,0.2337,4798.0,4797.9,1.76308]
[1756007778500,0.45,4798.0,4797.9,1.76308]
[1756007778698,0.45,4798.0,4797.9,4.97088]
[1756007779199,0.1504,4798.7,4798.1,0.577]
[1756007779399,3.2078,4798.8,4798.2,1.3461]
[1756007779400,0.9814,4798.3,4798.2,1.3461]
[1756007779599,1.3274,4798.3,4798.2,1.76305]
[1756007780903,0.9814,4798.3,4798.2,1.76305]
[1756007781917,0.6004,4798.3,4798.2,1.76305]
[1756007782698,0.9464,4798.3,4798.2,1.76305]
[1756007782912,1.3274,4798.3,4798.2,1.1289]
[1756007783209,1.3274,4798.2,4798.1,0.41696]
[1756007783705,1.3274,4798.2,4798.1,1.17316]
[1756007784009,1.3274,4798.2,4798.1,1.54586]
[1756007785511,1.1111,4798.5,4798.4,1.54583]
[1756007786011,1.3274,4798.5,4798.4,1.54583]
[1756007788912,1.3274,4798.5,4798.4,1.76303]
[1756007790107,0.2163,4798.5,4798.4,1.76303]
[1756007794613,3.24408018,4799.4,4798.4,1.76303]
[1756007794614,0.2322,4798.9,4798.8,0.5475]
[1756007794912,0.2322,4798.9,4798.8,1.7573]
[1756007795113,3.2078,4799.4,4799.3,1.18146]
[1756007795318,3.7328,4800.0,4799.9,1.1233]
[1756007795514,3.7328,4800.0,4799.9,0.8988]
[1756007795820,4.5436,4800.0,4799.9,0.8988]
[1756007796015,4.5436,4800.0,4799.9,1.1233]
[1756007799817,0.1569,4799.1,4799.0,3.5884]
[1756007800022,1.3358,4799.1,4799.0,3.9397]
[1756007800222,1.3358,4799.1,4799.0,4.13208]
[1756007800923,1.3358,4799.1,4799.0,4.74798]
[1756007801510,1.3358,4799.1,4797.7,20.58839115]
[1756007801511,0.2209,4798.9,4797.7,0.2308]
[1756007801716,0.2209,4798.9,4796.6,5.78973452]
[1756007801717,0.41702,4797.5,4796.9,1.69989115]
[1756007801913,1.04234,4798.5,4796.9,1.1233]
[1756007801914,0.3035,4797.0,4796.9,1.1233]
[1756007802116,0.7566,4797.0,4796.9,1.1233]
[1756007802411,0.5229,4797.0,4796.9,1.3541]
[1756007802618,3.5098,4797.3,4797.2,1.1296]
[1756007802819,3.7307,4797.3,4797.2,1.3541]
[1756007803224,3.7307,4797.3,4797.2,1.77114]
[1756007803424,3.7322,4797.3,4797.2,1.77114]
[1756007803921,3.7322,4797.3,4797.2,1.3541]
[1756007805222,3.9644,4797.3,4797.2,1.1296]
[1756007805721,1.17365,4797.1,4797.0,0.2308]
[1756007806120,1.17365,4797.1,4796.7,0.2308]
[1756007806326,0.3035,4796.8,4796.7,0.7429]
[1756007806628,0.7566,4796.8,4796.7,0.7429]
[1756007806824,0.7566,4796.8,4796.7,0.9737]
[1756007807320,0.7566,4796.8,4796.7,1.3541]
[1756007808122,0.7566,4796.8,4796.7,1.77118]
[1756007808329,0.5244,4796.8,4796.7,1.77118]
[1756007808525,0.5244,4796.8,4796.7,1.3541]
[1756007810721,0.5229,4796.8,4796.7,1.3541]
[1756007810921,0.41706,4797.0,4796.9,1.3541]
[1756007812427,0.78306,4797.0,4796.9,1.3541]
[1756007815631,0.9528,4796.5,4796.4,0.2308]
[1756007815837,0.7566,4796.2,4796.1,1.1296]
[1756007816036,0.5229,4796.2,4796.1,1.3541]
[1756007816532,0.366,4796.4,4796.3,1.3541]
[1756007816729,0.2322,4797.0,4795.6,1.04295]
[1756007816730,0.1569,4796.7,4796.6,1.3541]
[1756007816925,0.78306,4797.0,4796.9,0.5475]
[1756007817130,0.78306,4797.0,4796.9,1.3541]
[1756007817131,0.93996,4797.0,4796.9,1.3541]
[1756007817330,0.94146,4797.0,4796.9,1.3541]
[1756007818231,1.17366,4797.0,4796.9,1.3541]
[1756007818729,0.5244,4797.0,4796.9,1.3541]
[1756007818921,0.366,4797.0,4796.9,1.3541]
[1756007819121,3.2078,4797.1,4797.0,1.3541]
[1756007819921,0.1451,4797.2,4797.1,0.80845]
[1756007820121,0.1451,4797.2,4797.1,1.77115]
[1756007820321,0.366,4797.2,4797.1,1.3541]
[1756007820526,0.5229,4797.2,4797.1,1.3541]
[1756007821130,0.5244,4797.2,4797.1,1.3541]
[1756007821333,0.7566,4797.2,4797.1,1.3541]
[1756007823033,0.5244,4797.2,4797.1,1.3541]
[1756007824030,0.5229,4797.2,4797.1,1.3541]
[1756007826334,3.2078,4797.6,4796.5,3.2078]
[1756007826335,3.2078,4797.6,4797.4,1.57912]
[1756007826530,3.2078,4797.6,4797.5,1.3164]
[1756007827435,3.2078,4798.1,4798.0,0.41697]
[1756007827637,3.2078,4798.1,4798.0,1.73337]
[1756007829227,0.587,4798.6,4798.0,1.73337]
[1756007829435,1.3276,4798.6,4798.5,1.73332]
[1756007830636,1.1008,4798.6,4798.5,1.73332]
[1756007832844,1.1008,4798.6,4798.5,2.02153982]
[1756007833336,0.8799,4798.6,4798.5,2.02153982]
[1756007833540,3.2078,4798.7,4798.6,1.3164]
[1756007833740,3.2078,4798.7,4798.6,1.60461982]
[1756007834138,3.3522,4798.7,4798.6,1.60461982]
[1756007834446,3.9392,4798.7,4798.6,1.60461982]
[1756007834834,3.5809,4798.7,4798.6,1.60461982]
[1756007835035,0.3583,4799.0,4798.6,1.05681982]
[1756007835231,0.3583,4799.0,4798.4,1.04234]
[1756007835232,0.7314,4799.0,4798.9,1.73329]
[1756007835438,0.8799,4799.0,4798.9,2.02150982]
[1756007835647,0.8799,4799.0,4798.9,2.02103396]
[1756007836146,0.1444,4799.0,4798.9,1.73329]
[1756007836946,1.1008,4799.3,4799.2,0.96466]
[1756007837146,1.1008,4799.3,4799.2,1.73326]
[1756007837841,0.64363,4799.6,4799.5,0.96464]
[1756007837842,0.5216,4799.6,4799.5,0.96464]
[1756007838043,1.1008,4799.6,4799.5,1.73324]
[1756007840651,0.8799,4799.6,4799.5,1.73324]
[1756007841546,0.8799,4799.6,4798.8,0.4169]
[1756007841547,0.3653,4798.9,4798.8,0.4169]
[1756007841744,1.3276,4798.9,4798.8,0.4169]
[1756007842146,1.3276,4798.9,4798.8,1.0278]
[1756007842453,1.3276,4798.9,4798.8,1.7333]
[1756007843252,1.3276,4798.9,4798.8,1.512]
[1756007844346,1.3276,4798.9,4798.8,0.4169]
[1756007844553,1.3276,4798.9,4798.8,0.6378]
[1756007845557,1.3276,4798.9,4798.8,1.0278]
[1756007845753,1.3276,4798.9,4798.8,1.512]
[1756007845952,1.3276,4798.9,4798.8,1.7333]
[1756007846157,1.1008,4798.9,4798.8,1.7333]
[1756007847560,0.8799,4798.9,4798.8,1.7333]
[1756007847751,0.3731,4798.9,4798.8,1.7333]
[1756007847946,0.1444,4798.9,4798.8,1.7333]
[1756007848457,0.587,4799.2,4799.1,0.96467]
[1756007848651,22.3258,4799.7,4799.5,1.73323]
[1756007848652,1.1008,4799.6,4799.5,1.73323]
[1756007849055,1.3276,4799.6,4799.5,1.23323]
[1756007849455,1.74443,4799.6,4799.5,1.23323]
[1756007851066,1.74443,4799.6,4799.5,1.01193]
[1756007851265,0.5138,4799.3,4799.2,0.2213]
[1756007851458,0.8138,4799.2,4799.1,0.63777]
[1756007851659,1.3276,4799.2,4799.1,1.73327]
[1756007852459,1.1008,4799.2,4799.1,1.73327]
[1756007854067,1.1008,4799.2,4799.1,2.02105427]
[1756007854568,0.3063,4799.5,4799.4,0.95665]
[1756007855168,0.8815,4799.5,4799.4,2.04493107]
[1756007855363,0.8815,4799.5,4799.4,1.75685]
[1756007856470,0.5268,4799.5,4799.4,1.75685]
[1756007857464,0.8815,4799.5,4799.4,1.75685]
[1756007858169,1.1103,4799.5,4799.4,1.75685]
[1756007858368,1.3396,4799.5,4799.4,1.60625]
[1756007858571,1.3396,4799.5,4799.4,1.75685]
[1756007859775,1.3396,4799.5,4799.4,1.52855]
[1756007860072,1.3396,4799.5,4799.4,0.64255]
[1756007860272,1.3396,4799.5,4799.4,1.14015]
[1756007860470,1.1103,4799.5,4799.4,1.75685]
[1756007860663,0.1592,4799.5,4799.4,1.75685]
[1756007861471,0.1592,4799.5,4799.4,2.04544185]
[1756007862870,0.5268,4799.5,4799.4,2.04544185]
[1756007863173,1.1103,4799.5,4799.4,2.04544185]
[1756007863576,1.3396,4799.5,4799.4,2.04544185]
[1756007864368,1.1103,4799.5,4799.4,2.04544185]
[1756007866673,1.1103,4799.5,4799.4,0.70544185]
[1756007866674,0.5268,4799.5,4799.4,0.70544185]
[1756007866978,1.7988248,4799.5,4799.4,0.28859185]
[1756007867679,1.3396,4799.1,4799.0,0.2257]
[1756007867878,1.7988248,4799.1,4798.9,0.41689]
[1756007868075,0.5351,4799.1,4799.0,0.28961496]
[1756007868282,0.99435448,4799.1,4799.0,0.28961496]
[1756007868778,1.79885448,4799.1,4799.0,0.66670993]
[1756007869383,1.79885448,4799.1,4799.0,1.25070993]
[1756007869988,1.79885448,4799.1,4799.0,1.62960993]
[1756007876487,0.61845448,4799.1,4799.0,1.62960993]
[1756007876988,0.98605448,4799.1,4799.0,1.62960993]
[1756007877181,1.34075448,4799.1,4799.0,1.62960993]
[1756007877376,1.56955448,4799.1,4799.0,1.62960993]
[1756007877589,1.79885448,4799.1,4799.0,1.62960993]
[1756007877887,1.79885448,4799.1,4799.0,1.34]
[1756007878185,1.56955448,4799.1,4799.0,1.62973562]
[1756007878586,1.56956263,4799.1,4799.0,1.62973562]
[1756007878790,1.56956263,4799.1,4799.0,1.34]
[1756007878990,1.79886263,4799.1,4799.0,1.34]
[1756007879587,1.56956263,4799.1,4799.0,1.34]
[1756007879988,1.79886263,4799.1,4799.0,1.34]
[1756007880491,1.79886263,4799.1,4799.0,1.1894]
[1756007880684,1.79886263,4799.1,4799.0,1.34]
[1756007881879,1.79886263,4799.1,4798.9,0.41689]
[1756007882084,1.3396,4799.0,4798.9,0.41689]
[1756007882280,0.5351,4798.8,4798.7,0.2257]
[1756007882484,1.3396,4798.8,4798.7,0.2257]
[1756007884088,1.3396,4798.8,4798.7,0.728]
[1756007884293,1.3396,4798.8,4798.7,0.9594]
[1756007884492,1.79875302,4798.8,4798.7,1.1762]
[1756007887397,1.79875302,4798.8,4798.7,1.3242]
[1756007889798,1.3396,4798.8,4798.7,1.3242]
[1756007893991,20.4476,4798.8,4798.7,1.3242]
[1756007894196,20.4476,4798.8,4798.3,0.7221]
[1756007894197,1.3294,4798.4,4798.3,0.7221]
[1756007894495,1.3294,4798.4,4798.3,0.5053]
[1756007894692,1.3294,4798.4,4798.3,0.7438]
[1756007895192,1.3294,4798.4,4798.3,0.3929]
[1756007895394,1.3294,4798.1,4798.0,0.9535]
[1756007895594,1.3294,4798.1,4796.5,0.7506]
[1756007895595,1.3294,4796.6,4796.5,0.7506]
[1756007895795,24.52078819,4796.6,4796.5,0.19559766]
[1756007895991,0.41713,4796.1,4795.8,0.2168]
[1756007896198,3.2078,4795.9,4795.6,0.3509]
[1756007896401,0.5293,4795.7,4795.6,0.7438]
[1756007896602,1.3294,4795.7,4795.6,0.7438]
[1756007896808,1.80342543,4795.7,4795.6,0.3929]
[1756007897106,1.3294,4795.7,4795.6,0.6243]
[1756007897299,1.3294,4795.7,4795.6,0.9752]
[1756007897903,1.3294,4795.7,4795.6,0.2385]
[1756007898196,0.8001,4795.4,4795.3,0.7367]
[1756007898406,1.3294,4795.4,4795.3,1.1015]
[1756007898810,1.3294,4795.4,4795.3,1.34]
[1756007900804,0.5293,4795.1,4794.3,0.5677]
[1756007901005,0.879,4794.4,4794.3,1.1015]
[1756007901201,1.0976,4794.1,4794.0,16.1015]
[1756007901401,1.0976,4794.1,4794.0,16.34]
[1756007902200,20.2076,4794.1,4794.0,16.34]
[1756007902403,20.4394,4794.1,4794.0,16.34]
[1756007902804,1.74671,4794.1,4794.0,15.2723]
[1756007903001,20.85671,4794.1,4794.0,15.84]
[1756007903205,20.85671,4794.1,4794.0,15.6232]
[1756007903402,20.85671,4794.1,4794.0,14.5]
[1756007903603,24.85671,4794.1,4794.0,14.5]
[1756007904606,5.74671,4794.1,4794.0,14.5]
[1756007904907,24.85971,4794.1,4794.0,14.5]
[1756007905503,20.85971,4794.1,4794.0,14.5]
[1756007905700,20.85971,4794.1,4794.0,14.8929]
[1756007906502,20.85971,4794.1,4794.0,14.5]
[1756007909609,24.85971,4794.1,4794.0,13.6452]
[1756007909906,0.5268,4792.9,4792.8,1.1232]
[1756007910113,0.1561,4793.2,4793.1,0.8062]
[1756007910315,0.5252,4793.5,4793.4,0.5338]
[1756007910506,19.6458,4793.5,4793.4,1.34]
[1756007911416,19.8809,4793.5,4793.4,1.34]
[1756007912002,19.4256,4793.5,4793.4,1.34]
[1756007912205,19.6442,4793.5,4793.4,1.34]
[1756007912505,19.6472,4793.5,4793.4,1.34]
[1756007913102,0.5252,4793.5,4793.4,1.34]
[1756007913309,19.6472,4793.5,4793.4,1.34]
[1756007913607,19.6488,4793.5,4793.4,1.34]
[1756007913806,19.8887,4793.5,4793.4,1.2148]
[1756007914010,20.1143,4793.5,4793.4,1.2148]
[1756007914613,20.1143,4793.5,4793.4,0.7226]
[1756007914913,20.1143,4793.5,4793.4,0.9554]
[1756007915313,20.1163,4793.5,4793.4,0.9554]
[1756007915509,20.1163,4793.5,4793.4,0.1465]
[1756007915714,1.2414,4793.0,4792.9,1.76781]
[1756007916014,20.3654,4793.0,4792.9,1.76781]
[1756007916313,19.9066,4793.0,4792.9,1.76781]
[1756007916913,19.9066,4793.0,4792.9,1.74701]
[1756007917111,19.6667,4793.0,4792.9,1.74701]
[1756007917609,19.4365,4793.0,4792.9,1.74701]
[1756007918213,19.6667,4793.0,4792.9,1.74701]
[1756007918414,20.1398,4793.0,4792.9,1.74701]
[1756007919815,0.7826,4793.0,4792.9,1.74701]
[1756007920114,20.3664,4793.0,4792.9,1.74701]
[1756007920815,19.9076,4793.0,4792.9,1.74701]
[1756007922710,1.0158,4793.0,4792.9,1.74701]
[1756007923006,20.3674,4793.0,4792.9,1.74701]
[1756007924217,20.3674,4793.0,4792.9,1.14001]
[1756007924911,20.3674,4793.0,4792.9,1.29501]
[1756007925112,20.3674,4793.0,4792.9,1.74701]
[1756007925810,20.3674,4793.0,4792.9,0.41741]
[1756007926016,20.84029084,4793.0,4792.9,0.41741]
[1756007926407,1.71429084,4793.0,4792.9,0.41741]
[1756007926612,20.84029084,4793.0,4792.9,0.41741]
[1756007926816,20.84029084,4793.0,4792.9,0.99351]
[1756007927417,20.84129084,4793.0,4792.9,1.74701]
[1756007929016,1.71429084,4793.0,4792.9,1.74701]
[1756007929318,20.84129084,4793.0,4792.9,1.74701]
[1756007930921,1.71429084,4793.0,4792.9,1.74701]
[1756007931124,20.84129084,4793.0,4792.9,1.74701]
[1756007932222,1.71429084,4793.0,4792.9,1.74701]
[1756007932519,20.84129084,4793.0,4792.9,1.74701]
[1756007933118,20.84129084,4793.0,4792.9,1.92507866]
[1756007933512,20.84129084,4793.0,4792.9,1.70587866]
[1756007933717,20.84129084,4793.0,4792.9,1.47307866]
[1756007934018,20.84129084,4793.0,4792.9,1.31807866]
[1756007934216,20.84129084,4793.0,4792.9,0.82379077]
[1756007934823,20.84129084,4793.0,4792.9,0.64571]
[1756007935024,1.71429084,4793.0,4792.9,0.41741]
[1756007935216,20.84129084,4793.0,4792.9,0.41741]
[1756007935417,1.2414,4792.5,4792.4,3.62525]
[1756007935723,20.84129084,4792.5,4792.4,3.80337575]
[1756007936117,20.84129084,4792.5,4792.4,4.52597575]
[1756007936313,20.84029084,4792.5,4792.4,4.52595741]
[1756007936719,20.84029084,4792.5,4792.4,0.82385741]
[1756007936918,20.84029084,4792.5,4792.4,0.59555741]
[1756007938324,20.84029084,4792.5,4792.4,0.17810741]
[1756007938928,1.71429084,4792.5,4792.4,0.17810741]
[1756007939129,20.84029084,4792.5,4792.4,0.17810741]
[1756007940018,1.71429084,4792.5,4792.4,0.17810741]
[1756007940222,20.84029084,4792.5,4792.4,0.17810741]
[1756007940422,21.25774084,4792.5,4792.2,0.41747]
[1756007940620,1.71429084,4792.4,4792.3,0.17811044]
[1756007940823,1.71429084,4792.4,4792.0,0.41749]
[1756007940824,1.2414,4792.3,4792.2,0.41747]
[1756007941020,19.59889084,4792.3,4792.2,1.92520023]
[1756007941222,0.47289084,4792.3,4792.2,5.94600023]
[1756007941424,19.126,4792.6,4792.5,1.60055]
[1756007941725,19.126,4792.6,4792.5,4.95485]
[1756007941925,19.126,4792.6,4792.5,5.13291496]
[1756007942931,19.2826,4792.6,4792.5,5.13291496]
[1756007943130,19.5128,4792.6,4792.5,5.13291496]
[1756007943325,19.6687,4792.6,4792.5,5.13291496]
[1756007943530,19.9086,4792.6,4792.5,5.13291496]
[1756007944122,20.1419,4792.6,4792.5,5.13291496]
[1756007944321,20.3636,4792.6,4792.5,5.13291496]
[1756007944728,20.3636,4792.6,4792.5,1.47311496]
[1756007945229,20.3636,4792.6,4792.5,1.47314967]
[1756007946034,1.2376,4792.6,4792.5,1.69054967]
[1756007946236,20.3636,4792.6,4792.5,1.90834967]
[1756007948926,20.3626,4792.6,4792.5,1.90834967]
[1756007949136,1.2376,4792.6,4792.5,1.90834967]
[1756007949331,20.3626,4792.6,4792.5,1.90834967]
[1756007949532,1.2376,4792.6,4792.5,1.90834967]
[1756007949733,20.3626,4792.6,4792.5,1.90834967]
[1756007951435,20.3626,4792.6,4792.5,1.73025]
[1756007951639,20.3626,4792.6,4792.5,1.90828586]
[1756007952731,1.2376,4792.6,4792.5,1.90828586]
[1756007952936,20.3616,4792.6,4792.5,1.90828586]
[1756007953637,1.2376,4792.6,4792.5,1.90828586]
[1756007953840,20.3616,4792.6,4792.5,1.90828586]
[1756007955042,20.3616,4792.6,4792.5,1.73025]
[1756007955244,20.3616,4792.6,4792.5,1.90828603]
[1756007955939,20.3606,4792.6,4792.5,1.90828603]
[1756007959146,1.2376,4792.6,4792.5,1.90828603]
[1756007959343,20.3606,4792.6,4792.5,1.90828603]
[1756007960147,1.2376,4792.6,4792.5,1.90828603]
[1756007960348,20.3596,4792.6,4792.5,1.90828603]
[1756007961448,20.3596,4792.6,4792.5,1.69048603]
[1756007961649,20.3596,4792.6,4792.5,1.47308603]
[1756007963845,20.3596,4792.6,4792.5,1.31808603]
[1756007964453,1.2376,4792.6,4792.5,1.31808603]
[1756007964654,20.3586,4792.6,4792.5,1.90888603]
[1756007965041,20.3586,4792.6,4792.5,1.73085]
[1756007965247,20.3586,4792.6,4792.5,1.90890205]
[1756007965549,20.3586,4792.6,4792.5,1.73085]
[1756007965760,20.3586,4792.6,4792.5,1.9089042]
[1756007968554,20.3566,4792.6,4792.5,1.9089042]
[1756007970048,20.3566,4792.6,4792.5,0.5955042]
[1756007970953,20.3566,4792.6,4792.5,0.9454042]
[1756007971454,20.3566,4792.6,4792.5,1.17843913]
[1756007971749,20.3566,4792.6,4792.5,1.54703913]
[1756007971957,20.3566,4792.6,4792.5,1.76483913]
[1756007973262,20.3556,4792.6,4792.5,1.76483913]
[1756007973456,20.3556,4792.6,4792.5,1.92043913]
[1756007973752,1.2376,4792.6,4792.5,1.92043913]
[1756007974852,1.2376,4792.6,4792.5,1.74225]
[1756007975049,1.2376,4792.6,4792.5,1.9204648]
[1756007975948,20.3546,4792.6,4792.5,1.92046445]
[1756007979156,20.3546,4792.6,4792.5,1.32966445]
[1756007979356,20.3546,4792.6,4792.5,1.17846445]
[1756007980457,20.3546,4792.6,4792.5,0.59566445]
[1756007981056,1.2376,4792.6,4792.5,0.59566445]
[1756007981256,20.3526,4792.6,4792.5,0.59566445]
[1756007985057,19.7636,4792.6,4792.5,0.04351784]
[1756007985261,23.115,4792.6,4791.9,3.2078]
[1756007985455,0.475596,4792.5,4791.9,3.2078]
[1756007985655,19.588596,4792.4,4791.9,3.2078]
[1756007985857,19.113,4792.4,4791.9,3.2078]
[1756007986055,0.41747,4792.3,4791.9,3.2078]
[1756007986258,19.112,4792.2,4792.1,0.41748]
[1756007990565,3.2078,4792.0,4791.6,0.41752]
[1756007990756,0.41751,4791.8,4791.7,0.41751]
[1756007990957,19.112,4791.9,4791.2,0.2358]
[1756007991257,0.41752,4791.7,4791.5,0.41753]
[1756007991457,19.111,4791.6,4791.5,0.41753]
[1756007991855,0.41753,4791.6,4791.3,0.41755]
[1756007992061,19.111,4791.5,4791.3,0.41755]
[1756007992855,19.111,4791.5,4791.4,0.41754]
[1756007995063,3.2078,4792.0,4791.2,0.3555]
[1756007995264,33.2698,4792.5,4791.9,0.8252]
[1756007995461,33.2698,4792.5,4792.4,0.41745]
[1756007995662,52.3808,4792.5,4792.4,0.88715]
[1756007995962,33.2698,4792.5,4792.4,0.88715]
[1756007996163,52.3808,4792.5,4792.4,1.03865]
[1756007996466,52.3818,4792.5,4792.4,1.77275]
[1756007996961,52.3818,4792.5,4792.4,0.41745]
[1756007997466,0.41747,4792.3,4792.0,0.41749]
[1756007997664,22.73628,4792.2,4792.0,0.41748]
[1756007997867,0.41748,4792.1,4791.4,0.2358]
[1756007998368,0.41748,4792.1,4791.9,0.41749]
[1756007998570,22.3188,4792.2,4792.0,0.41749]
[1756007998764,3.2078,4792.2,4792.1,0.2358]
[1756007998969,22.3188,4792.2,4792.1,0.2358]
[1756008000868,22.3178,4792.2,4792.1,0.4697]
[1756008001965,22.3178,4792.2,4792.1,0.2358]
[1756008002670,22.3178,4792.2,4792.0,0.41749]
[1756008002864,19.11,4792.1,4792.0,0.41749]
[1756008003582,19.11,4792.1,4792.0,0.65329]
[1756008003785,19.11,4792.1,4792.0,0.87269]
[1756008003981,3.2078,4792.2,4792.1,0.229]
[1756008004182,22.3178,4792.2,4792.1,0.229]
[1756008004686,19.11,4792.2,4792.1,0.229]
[1756008005280,30.062,4792.5,4792.4,0.41746]
[1756008005583,49.172,4792.5,4792.4,0.14646]
[1756008005782,49.2546,4792.5,4792.4,0.14646]
[1756008006484,49.2546,4792.5,4792.4,0.56392]
[1756008006885,49.172,4792.5,4792.4,1.51526]
[1756008007183,19.2422,4792.5,4792.4,1.51526]
[1756008007382,0.1322,4792.5,4792.4,1.51526]
[1756008007586,3.34,4793.2,4793.1,0.9553]
[1756008007773,22.449,4793.2,4793.1,1.7442]
[1756008009980,3.34,4793.2,4793.1,1.7442]
[1756008010181,22.449,4793.2,4793.1,1.7442]
[1756008010483,0.1322,4793.2,4793.1,1.7442]
[1756008010984,0.1322,4793.9,4793.8,1.74413]
[1756008011174,19.2402,4793.9,4793.8,1.74413]
[1756008011886,19.108,4793.9,4793.8,1.74413]
[1756008012478,3.2904,4794.3,4794.2,0.4173]
[1756008012682,22.5306,4794.3,4794.2,0.8657]
[1756008012881,22.5306,4794.3,4794.2,0.6463]
[1756008013388,0.0826,4794.2,4793.3,0.229]
[1756008013593,0.2148,4793.5,4793.4,0.41736]
[1756008013788,19.3218,4793.5,4793.4,0.41736]
[1756008014088,0.1322,4793.0,4792.9,0.229]
[1756008014290,0.1322,4792.7,4792.6,0.41744]
[1756008014483,19.3208,4792.7,4792.6,0.41744]
[1756008014684,19.3208,4792.7,4792.6,0.64644]
[1756008014887,19.3208,4792.7,4792.6,0.86584]
[1756008015088,19.2382,4792.7,4792.6,1.40374]
[1756008015386,3.34,4793.3,4793.2,0.56799]
[1756008015582,0.1322,4793.3,4793.2,1.74419]
[1756008015788,3.34,4794.0,4793.9,0.41733]
[1756008016090,22.445,4794.0,4793.9,1.74413]
[1756008016282,0.1322,4794.0,4793.9,1.74413]
[1756008018281,3.3397,4794.7,4794.6,0.41727]
[1756008018488,22.5251,4794.7,4794.6,0.64627]
[1756008019682,22.5251,4794.7,4794.4,0.41728]
[1756008019887,0.1319,4794.5,4794.4,0.64628]
[1756008020092,0.2143,4794.5,4794.4,0.64628]
[1756008021796,19.3163,4794.5,4794.4,0.64628]
[1756008023390,19.2339,4794.5,4794.4,1.18418]
[1756008023694,0.1319,4794.5,4794.4,1.74408]
[1756008023883,3.3397,4794.7,4794.6,0.95517]
[1756008024084,22.4397,4794.7,4794.6,1.74407]
[1756008025493,22.3078,4794.7,4794.6,1.74407]
[1756008025688,3.2078,4794.7,4794.6,1.74407]
[1756008026793,3.3397,4795.3,4795.2,1.3268]
[1756008026999,0.2143,4795.1,4795.0,0.41723]
[1756008027290,0.2143,4794.8,4794.7,0.229]
[1756008027493,19.3123,4794.8,4794.7,0.229]
[1756008029596,19.3123,4794.8,4794.7,0.4484]
[1756008029892,0.1319,4794.8,4794.7,0.9863]
[1756008030091,3.3391,4795.3,4795.2,1.74402]
[1756008030285,22.4361,4795.3,4795.2,1.74402]
[1756008030493,23.1657,4795.3,4795.2,1.39462]
[1756008030797,23.1657,4795.3,4795.2,1.55352]
[1756008030993,19.9579,4795.3,4795.2,1.55352]
[1756008031200,19.7998,4795.3,4795.2,1.55352]
[1756008031390,0.1896,4795.6,4795.5,0.41719]
[1756008031595,3.7427,4795.8,4795.7,0.5379]
[1756008031900,23.0604,4795.8,4795.7,1.40347]
[1756008032100,23.4081,4795.8,4795.7,1.40347]
[1756008032601,23.4081,4795.8,4795.7,1.74397]
[1756008033101,4.3111,4795.8,4795.7,1.74397]
[1756008033399,23.1864,4795.8,4795.7,1.74397]
[1756008033595,23.4071,4795.8,4795.7,1.74397]
[1756008033800,4.3111,4795.8,4795.7,1.74397]
[1756008033998,23.4071,4795.8,4795.7,1.74397]
[1756008034199,23.4071,4795.8,4795.7,1.40347]
[1756008035702,4.3111,4795.8,4795.7,1.40347]
[1756008035890,23.4051,4795.8,4795.7,1.40347]
[1756008038002,23.4051,4795.8,4795.7,1.75917]
[1756008039606,23.4031,4795.8,4795.7,1.75917]
[1756008039804,4.3111,4795.8,4795.7,1.75917]
[1756008040000,3.7427,4795.8,4795.7,1.75917]
[1756008040204,3.3608,4795.8,4795.7,1.75917]
[1756008040400,0.8791,4795.8,4795.7,1.75917]
[1756008040604,1.1092,4795.8,4795.7,1.75917]
[1756008041711,19.9701,4795.8,4795.7,1.75917]
[1756008042103,0.9554,4795.1,4795.0,0.2184]
[1756008042307,20.2049,4795.1,4795.0,0.2184]
[1756008043008,20.2049,4795.1,4795.0,0.63563]
[1756008043711,20.2049,4795.1,4795.0,0.41723]
[1756008044202,0.9554,4794.7,4794.6,0.41726]
[1756008044404,0.1901,4794.6,4794.4,0.41728]
[1756008044598,1.1139,4794.5,4794.4,0.41728]
[1756008045308,1.1139,4794.5,4794.2,0.4173]
[1756008045511,1.1139,4794.4,4794.3,0.41729]
[1756008046201,0.8838,4794.8,4794.7,0.63566]
[1756008046407,0.5352,4794.8,4794.5,0.41727]
[1756008046605,1.1139,4794.6,4794.5,0.41727]
[1756008051107,0.1577,4794.3,4794.2,0.6357]
[1756008051410,20.2029,4794.3,4794.2,0.6357]
[1756008051607,20.2029,4794.3,4794.2,0.4173]
[1756008053111,19.9728,4794.3,4794.2,1.7609]
[1756008054709,0.8838,4794.3,4794.2,1.7609]
[1756008057610,0.1577,4794.6,4794.5,1.76088]
[1756008057810,0.7253,4794.9,4794.8,1.3436]
[1756008058110,0.8838,4794.9,4794.8,1.3436]
[1756008058311,0.4932,4794.9,4794.8,1.3436]
[1756008058503,19.9728,4795.3,4795.2,1.76082]
[1756008058902,19.6242,4795.7,4795.6,0.95288]
[1756008059108,0.3031,4795.7,4795.6,1.76078]